[Event "Prague Open 2024"]
[Site "Prague"]
[Date "2024.01.11"]
[Round "8.11"]
[White "Krstic, Andrija Marko"]
[Black "Grave, Jacob Templen"]
[Result "1-0"]
[ECO "D45"]
[WhiteElo "2113"]
[BlackElo "2296"]
[Annotator "RC"]
[PlyCount "67"]
[EventDate "2024.01.02"]
[EventType "swiss"]
[EventCountry "CZE"]
[SourceTitle "playchess.com"]
[Source "ChessBase"]
[SourceQuality "1"]
[TimeControl "40/5400+30:1800+30"]

1. d4 {[%emt 0:00:09]} Nf6 {[%emt 0:00:12]} 2. c4 {[%emt 0:00:58]} e6 {[%emt 0:00:05]} 3. Nf3 {[%emt 0:00:03]} d5 {[%emt 0:00:07]} 4. Nc3 {[%emt 0:00:04]} c6 {[%emt 0:00:16]} 5. e3 {[%emt 0:00:04]} Nbd7 {[%emt 0:00:15]} 6. Be2 {[%emt 0:00:04]} Bd6 {[%emt 0:01:53]} 7. O-O {[%emt 0:00:06]} O-O {[%emt 0:00:23]} 8. b3 {[%emt 0:00:03]} b6 {[%emt 0:02:11]} 9. Bb2 {[%emt 0:00:22]} Bb7 {[%emt 0:00:15]} 10. Bd3 {[%emt 0:00:04]} c5 {[%emt 0:10:37]} 11. cxd5 {[%emt 0:00:13]} exd5 {[%emt 0:00:22]} 12. Rc1 {[%emt 0:02:25]} Rc8 {[%emt 0:03:40]} 13. Ne2 {[%emt 0:00:39]} Re8 {[%emt 0:03:36]} 14. Ng3 {[%emt 0:01:11]} g6 {[%emt 0:06:49]} 15. Bb5 {[%emt 0:02:25]} Re7 {[%emt 0:07:07]} 16. Rc2 {[%emt 0:06:41]} a6 {[%emt 0:05:46]} 17. Bxd7 {[%emt 0:03:28]} Nxd7 {[%emt 0:04:37]} 18. dxc5 {[%emt 0:04:53]} bxc5 {[%emt 0:00:32]} 19. Qa1 {[%emt 0:00:17]} Re8 {[%emt 0:04:06]} 20. Rd1 {[%emt 0:03:11]} Qe7 {[%emt 0:02:52]} 21. Ne2 {[%emt 0:04:20]} h5 {[%emt 0:10:54]} 22. b4 {[%emt 0:12:10]} d4 {[%emt 0:04:38]} 23. bxc5 {[%emt 0:03:04]} Bxf3 {[%emt 0:02:10]} 24. gxf3 {[%emt 0:00:06]} dxe3 {[%emt 0:09:19]} 25. Rxd6 {[%emt 0:31:54]} exf2+ {[%emt 0:00:06]} 26. Kxf2 {[%emt 0:00:29]} Rxc5 {[%emt 0:05:12]} 27. Rcd2 {[%emt 0:00:29]} Rf5 {[%emt 0:13:36]} 28. Qf1 {[%emt 0:07:15]} Nc5 {[%emt 0:01:07]} 29. Ng3 {[%emt 0:01:50]} Rf4 {[%emt 0:00:41]} 30. Re2 {[%emt 0:01:03]} Ne6 {[%emt 0:00:15]} 31. Be5 {[%emt 0:01:10]} Rc4 {[%emt 0:01:30]} 32. Ne4 {[%emt 0:00:29]} Rec8 {[%emt 0:00:48]} 33. Rd7 {[%emt 0:00:50]} Qb4 {[%emt 0:00:30]} 34. Nf6+ {[%emt 0:00:12]} 1-0

[Event "Prague Open 2024"]
[Site "Prague"]
[Date "2024.01.11"]
[Round "8.12"]
[White "Eropunov, Gleb"]
[Black "Morchiashvili, Bachana"]
[Result "1/2-1/2"]
[ECO "E73"]
[WhiteElo "2052"]
[BlackElo "2295"]
[Annotator "RC"]
[PlyCount "111"]
[EventDate "2024.01.02"]
[EventType "swiss"]
[EventCountry "CZE"]
[SourceTitle "playchess.com"]
[Source "ChessBase"]
[SourceQuality "1"]
[TimeControl "40/5400+30:1800+30"]

1. d4 {[%emt 0:00:10]} Nf6 {[%emt 0:00:08]} 2. c4 {[%emt 0:00:07]} g6 {[%emt 0:00:12]} 3. Nc3 {[%emt 0:00:09]} Bg7 {[%emt 0:00:19]} 4. e4 {[%emt 0:00:15]} d6 {[%emt 0:00:02]} 5. Be2 {[%emt 0:00:08]} O-O {[%emt 0:00:09]} 6. Be3 {[%emt 0:00:03]} e5 {[%emt 0:02:20]} 7. d5 {[%emt 0:00:33]} Na6 {[%emt 0:02:31]} 8. g4 {[%emt 0:00:10]} Nc5 {[%emt 0:00:16]} 9. f3 {[%emt 0:00:14]} a5 {[%emt 0:01:17]} 10. h4 {[%emt 0:00:08]} c6 {[%emt 0:06:48]} 11. h5 {[%emt 0:20:53]} cxd5 {[%emt 0:01:43]} 12. h6 {[%emt 0:04:12]} Bh8 {[%emt 0:00:15]} 13. cxd5 {[%emt 0:01:53]} Ne8 {[%emt 0:06:15]} 14. Nh3 {[%emt 0:03:08]} Bf6 {[%emt 0:00:46]} 15. Qd2 {[%emt 0:07:50]} Bd7 {[%emt 0:09:51]} 16. O-O-O {[%emt 0:17:54]} Rc8 {[%emt 0:05:45]} 17. Kb1 {[%emt 0:00:14]} a4 {[%emt 0:00:48]} 18. Nf2 {[%emt 0:07:25]} Qa5 {[%emt 0:22:07]} 19. Nb5 {[%emt 0:02:38]} Qa6 {[%emt 0:12:22]} 20. Nc7 {[%emt 0:08:30]} Qa7 {[%emt 0:01:18]} 21. Nxe8 {[%emt 0:04:15]} Rfxe8 {[%emt 0:00:56]} 22. Rc1 {[%emt 0:02:21]} Bd8 {[%emt 0:01:22]} 23. Nd3 {[%emt 0:01:40]} Ba5 {[%emt 0:01:01]} 24. Qd1 {[%emt 0:04:22]} Bb6 {[%emt 0:01:41]} 25. Nxc5 {[%emt 0:00:26]} Bxc5 {[%emt 0:00:30]} 26. Bxc5 {[%emt 0:02:18]} Rxc5 {[%emt 0:00:01]} 27. Rxc5 {[%emt 0:04:01]} Qxc5 {[%emt 0:00:05]} 28. Qg1 {[%emt 0:01:45]} Rc8 {[%emt 0:06:04]} 29. Qxc5 {[%emt 0:00:26]} Rxc5 {[%emt 0:00:01]} 30. Rc1 {[%emt 0:01:31]} f6 31. Rxc5 {[%emt 0:00:28]} dxc5 {[%emt 0:04:40]} 32. Kc2 {[%emt 0:01:31]} Kf7 {[%emt 0:02:57]} 33. Kc3 {[%emt 0:00:31]} b5 {[%emt 0:00:35]} 34. b4 {[%emt 0:00:48]} axb3 {[%emt 0:01:26]} 35. axb3 {[%emt 0:00:08]} Ke7 {[%emt 0:03:29]} 36. b4 {[%emt 0:00:54]} Kd6 {[%emt 0:01:31]} 37. Bd3 {[%emt 0:00:58]} Be8 {[%emt 0:00:36]} 38. Be2 {[%emt 0:00:25]} Bd7 {[%emt 0:02:50]} 39. Bd3 {[%emt 0:00:02]} Be8 {[%emt 0:00:47]} 40. Be2 {[%emt 0:00:06]} f5 {[%emt 0:01:23]} 41. exf5 {[%emt 0:14:37]} gxf5 {[%emt 0:01:12]} 42. gxf5 {[%emt 0:09:28]} c4 {[%emt 0:05:44]} 43. Bd1 {[%emt 0:01:36]} Bf7 {[%emt 0:04:53]} 44. f6 {[%emt 0:03:00]} Bxd5 {[%emt 0:01:55]} 45. Bc2 {[%emt 0:00:06]} Ke6 {[%emt 0:02:24]} 46. Bxh7 {[%emt 0:00:16]} Kxf6 {[%emt 0:00:07]} 47. Bf5 {[%emt 0:00:58]} Bc6 {[%emt 0:03:13]} 48. Kd2 {[%emt 0:00:40]} Bxf3 {[%emt 0:07:23]} 49. Bd7 {[%emt 0:00:24]} Kg6 {[%emt 0:00:12]} 50. Bxb5 {[%emt 0:00:04]} Kxh6 {[%emt 0:00:17]} 51. Bxc4 {[%emt 0:00:08]} Kg5 {[%emt 0:00:07]} 52. Ke3 {[%emt 0:00:06]} Bc6 {[%emt 0:00:22]} 53. b5 {[%emt 0:00:20]} Bxb5 {[%emt 0:00:05]} 54. Bxb5 {[%emt 0:00:03]} e4 {[%emt 0:00:03]} 55. Bd3 {[%emt 0:00:03]} exd3 {[%emt 0:00:05]} 56. Kxd3 {[%emt 0:00:04]} 1/2-1/2

[Event "Prague Open 2024"]
[Site "Prague"]
[Date "2024.01.11"]
[Round "8.13"]
[White "Kirtadze, Anastasia"]
[Black "Jun, Rudolf"]
[Result "1-0"]
[ECO "B30"]
[WhiteElo "1981"]
[BlackElo "2283"]
[Annotator "RC"]
[PlyCount "77"]
[EventDate "2024.01.02"]
[EventType "swiss"]
[EventCountry "CZE"]
[SourceTitle "playchess.com"]
[Source "ChessBase"]
[SourceQuality "1"]
[TimeControl "40/5400+30:1800+30"]

1. e4 {[%emt 0:00:01]} c5 {[%emt 0:00:20]} 2. Nf3 {[%emt 0:00:05]} Nc6 {[%emt 0:00:38]} 3. Bb5 {[%emt 0:00:04]} e6 {[%emt 0:02:01]} 4. O-O {[%emt 0:04:50]} d6 {[%emt 0:03:40]} 5. c3 {[%emt 0:03:30]} a6 {[%emt 0:02:17]} 6. Bxc6+ {[%emt 0:02:37]} bxc6 {[%emt 0:00:04]} 7. d4 {[%emt 0:00:06]} cxd4 {[%emt 0:05:36]} 8. cxd4 {[%emt 0:00:10]} d5 {[%emt 0:04:15]} 9. Qc2 {[%emt 0:03:00]} Bd7 {[%emt 0:00:51]} 10. Nc3 {[%emt 0:00:26]} Be7 {[%emt 0:05:33]} 11. Bd2 {[%emt 0:03:27]} dxe4 {[%emt 0:06:12]} 12. Nxe4 {[%emt 0:00:18]} Nf6 {[%emt 0:00:38]} 13. Nxf6+ {[%emt 0:01:12]} Bxf6 {[%emt 0:00:21]} 14. Bb4 {[%emt 0:00:04]} Be7 {[%emt 0:00:58]} 15. Bxe7 {[%emt 0:05:01]} Qxe7 {[%emt 0:00:03]} 16. Qc5 {[%emt 0:00:55]} Qxc5 {[%emt 0:03:10]} 17. dxc5 {[%emt 0:00:05]} f6 {[%emt 0:00:06]} 18. Rfd1 {[%emt 0:03:24]} e5 {[%emt 0:02:12]} 19. Rd6 {[%emt 0:01:18]} Ke7 {[%emt 0:01:23]} 20. Nd2 {[%emt 0:03:42]} Rab8 {[%emt 0:03:23]} 21. Nb3 {[%emt 0:05:26]} Rb5 {[%emt 0:08:33]} 22. Rad1 {[%emt 0:13:07]} Rd8 {[%emt 0:03:56]} 23. f4 {[%emt 0:10:00]} e4 {[%emt 0:00:07]} 24. f5 {[%emt 0:07:18]} g6 {[%emt 0:13:38]} 25. Nd4 {[%emt 0:10:23]} Rbb8 {[%emt 0:06:17]} 26. Rxd7+ {[%emt 0:05:35]} Kxd7 {[%emt 0:00:06]} 27. Ne6+ {[%emt 0:00:04]} Ke7 {[%emt 0:00:11]} 28. Nxd8 {[%emt 0:00:21]} Rxd8 {[%emt 0:00:06]} 29. Rxd8 {[%emt 0:00:06]} Kxd8 {[%emt 0:00:07]} 30. g4 {[%emt 0:00:03]} a5 {[%emt 0:01:20]} 31. Kf2 {[%emt 0:00:28]} a4 {[%emt 0:02:41]} 32. Ke3 {[%emt 0:00:54]} a3 {[%emt 0:01:17]} 33. b4 {[%emt 0:01:10]} Kc7 {[%emt 0:01:43]} 34. fxg6 {[%emt 0:02:09]} hxg6 {[%emt 0:00:07]} 35. Kxe4 {[%emt 0:01:06]} Kd7 {[%emt 0:00:13]} 36. h4 {[%emt 0:00:04]} Ke6 {[%emt 0:00:07]} 37. h5 {[%emt 0:00:26]} g5 {[%emt 0:00:17]} 38. h6 {[%emt 0:01:22]} f5+ {[%emt 0:00:05]} 39. gxf5+ {[%emt 0:00:04]} 1-0

[Event "Prague Open 2024"]
[Site "Prague"]
[Date "2024.01.11"]
[Round "8.14"]
[White "Vojta, Jakub"]
[Black "Teng, Jiarong"]
[Result "1/2-1/2"]
[ECO "A13"]
[WhiteElo "2261"]
[BlackElo "2063"]
[Annotator "RC"]
[PlyCount "101"]
[EventDate "2024.01.02"]
[EventType "swiss"]
[EventCountry "CZE"]
[SourceTitle "playchess.com"]
[Source "ChessBase"]
[SourceQuality "1"]
[TimeControl "40/5400+30:1800+30"]

1. c4 {[%emt 0:00:02]} Nf6 {[%emt 0:02:41]} 2. g3 {[%emt 0:00:06]} e6 {[%emt 0:00:08]} 3. Bg2 {[%emt 0:00:05]} d5 {[%emt 0:00:06]} 4. Nf3 {[%emt 0:00:04]} dxc4 {[%emt 0:00:06]} 5. Na3 {[%emt 0:03:57]} a6 {[%emt 0:11:11]} 6. Nxc4 {[%emt 0:01:20]} Be7 {[%emt 0:03:09]} 7. a4 {[%emt 0:02:43]} O-O {[%emt 0:01:44]} 8. O-O {[%emt 0:07:04]} b6 {[%emt 0:02:40]} 9. Nfe5 {[%emt 0:06:22]} Nd5 {[%emt 0:06:48]} 10. e4 {[%emt 0:03:26]} Nb4 {[%emt 0:03:55]} 11. d4 {[%emt 0:02:43]} Bb7 {[%emt 0:02:41]} 12. Be3 {[%emt 0:05:10]} Nd7 {[%emt 0:01:52]} 13. Qb3 {[%emt 0:01:07]} Nxe5 {[%emt 0:08:49]} 14. Nxe5 {[%emt 0:02:18]} a5 {[%emt 0:02:09]} 15. Rfd1 {[%emt 0:06:34]} Re8 {[%emt 0:11:14]} 16. Rac1 {[%emt 0:01:02]} Bf8 {[%emt 0:02:14]} 17. f3 {[%emt 0:03:42]} Qe7 {[%emt 0:06:35]} 18. Bf1 {[%emt 0:03:50]} Rac8 {[%emt 0:01:08]} 19. Bb5 {[%emt 0:08:37]} c6 {[%emt 0:00:09]} 20. Bc4 {[%emt 0:00:05]} Qc7 {[%emt 0:01:59]} 21. f4 {[%emt 0:01:57]} Bd6 {[%emt 0:11:41]} 22. f5 {[%emt 0:05:58]} Bxe5 {[%emt 0:01:11]} 23. fxe6 {[%emt 0:00:35]} f6 {[%emt 0:00:43]} 24. dxe5 {[%emt 0:00:33]} Qxe5 {[%emt 0:00:18]} 25. Bxb6 {[%emt 0:04:49]} Kh8 {[%emt 0:04:53]} 26. Qe3 {[%emt 0:03:15]} c5 {[%emt 0:00:52]} 27. Bxa5 {[%emt 0:01:41]} Qxb2 {[%emt 0:08:47]} 28. Qc3 {[%emt 0:04:11]} Qxc3 {[%emt 0:00:43]} 29. Rxc3 {[%emt 0:00:03]} Nc6 {[%emt 0:00:39]} 30. Bb5 {[%emt 0:08:34]} Rxe6 {[%emt 0:02:31]} 31. Rxc5 {[%emt 0:00:04]} Ra8 {[%emt 0:00:37]} 32. Bc3 {[%emt 0:00:44]} Ne5 {[%emt 0:01:19]} 33. a5 {[%emt 0:04:09]} h6 {[%emt 0:00:06]} 34. Rc7 {[%emt 0:03:26]} Nf3+ {[%emt 0:00:51]} 35. Kf2 {[%emt 0:00:34]} Ng5 {[%emt 0:00:01]} 36. Rxb7 {[%emt 0:02:14]} Nxe4+ {[%emt 0:00:02]} 37. Kf3 {[%emt 0:00:07]} Nxc3 {[%emt 0:00:08]} 38. Rdd7 {[%emt 0:03:49]} Nxb5 {[%emt 0:02:18]} 39. Rxb5 {[%emt 0:00:05]} Rea6 {[%emt 0:00:26]} 40. Rbb7 {[%emt 0:00:40]} Rg8 {[%emt 0:00:32]} 41. Ra7 {[%emt 0:30:24]} Ra8 {[%emt 0:22:18]} 42. Rab7 {[%emt 0:00:00]} Rg8 {[%emt 0:00:50]} 43. Ra7 {[%emt 0:00:00]} Ra8 {[%emt 0:00:05]} 44. Rd8+ {[%emt 0:00:00]} Rxd8 {[%emt 0:00:20]} 45. Rxa6 {[%emt 0:00:00]} Rd2 {[%emt 0:02:45]} 46. h4 {[%emt 0:00:00]} h5 {[%emt 0:00:55]} 47. Rb6 {[%emt 0:00:00]} Kh7 {[%emt 0:00:27]} 48. a6 {[%emt 0:00:00]} Ra2 {[%emt 0:00:08]} 49. Kf4 {[%emt 0:00:00]} Kg6 {[%emt 0:00:17]} 50. Ke4 {[%emt 0:00:00]} Ra3 {[%emt 0:00:56]} 51. Kf4 {[%emt 0:00:00]} 1/2-1/2

[Event "Prague Open 2024"]
[Site "Prague"]
[Date "2024.01.11"]
[Round "8.16"]
[White "Xie, Felix"]
[Black "Elashvili, Giorgi"]
[Result "1-0"]
[ECO "E73"]
[WhiteElo "2249"]
[BlackElo "1942"]
[Annotator "TA"]
[PlyCount "83"]
[EventDate "2024.01.02"]
[EventType "swiss"]
[EventCountry "CZE"]
[SourceTitle "playchess.com"]
[Source "ChessBase"]
[SourceQuality "1"]
[TimeControl "40/5400+30:1800+30"]

{[%evp 13,83,40,45,35,41,31,39,44,75,70,88,85,104,107,100,109,126,148,158,175,177,177,164,118,102,0,50,107,107,0,0,0,0,-43,0,-4,-16,-4,0,0,0,-49,-22,-25,-20,-16,0,0,0,-49,139,135,128,115,258,-600,60,62,606,606,569,543,518,518,1036,1019,1000,992,970,956,29998,0]} 1. d4 {[%emt 0:00:03]} Nf6 {[%emt 0:03:15]} 2. c4 {[%emt 0:00:16]} g6 {[%emt 0:00:26]} 3. Nc3 {[%emt 0:00:08]} Bg7 {[%emt 0:00:14]} 4. e4 {[%emt 0:00:08]} d6 {[%emt 0:01:03]} 5. Be2 {[%emt 0:00:19]} O-O {[%emt 0:00:29][%cal Bh8f8,Bf8e8,Be8e7][%mdl 32]} 6. Be3 {[%emt 0:00:06]} c5 {[%emt 0:00:06]} 7. d5 {[%emt 0:00:20]} e6 {[%emt 0:00:18]} 8. Nf3 {[%emt 0:00:07]} exd5 {[%emt 0:00:16]} 9. cxd5 {[%emt 0:00:07]} Re8 {[%emt 0:01:48]} 10. Nd2 {[%emt 0:00:30] Weiß steht etwas besser.} b6 {[%emt 0:28:25]} 11. O-O {[%emt 0:01:19]} Na6 {[%emt 0:07:02]} 12. Bb5 {[%emt 0:11:26]} Re7 {[%emt 0:17:02]} 13. Bg5 {[%emt 0:07:11]} h6 {[%emt 0:03:30]} 14. Bh4 {[%emt 0:00:29]} Nc7 {[%emt 0:05:07]} 15. Bc6 {[%emt 0:08:25]} Rb8 {[%emt 0:03:52]} 16. f4 {[%emt 0:02:45]} Ng4 {[%emt 0:06:48] [#]} 17. e5 $1 {[%emt 0:38:54][%mdl 512]} dxe5 {[%emt 0:18:42]} 18. Bxe7 {[%emt 0:01:21]} ({Vorzuziehen ist} 18. Nde4 $18 {Und d6 würde nun gewinnen.} exf4 19. Bxe7 Qxe7 20. d6) 18... Qxe7 $16 {[%emt 0:00:05]} 19. Nc4 {[%emt 0:00:54]} (19. Nf3 $16 {Und jetzt d6 wäre schön.} exf4 20. d6 Qe3+ 21. Kh1) 19... Qh4 $14 {[%emt 0:00:40][%csl Gg4][%cal Rh4h2]} 20. h3 {[%emt 0:04:05] Aktives Gegenspiel!} exf4 {[%emt 0:00:35]} 21. Ne2 {[%emt 0:03:24] Verhindert Bd4+} (21. Rxf4 $16 Bd4+ 22. Rxd4 Qf2+ 23. Kh1 Qxd4 (23... cxd4 24. d6 $16) 24. hxg4 Qxc4 25. d6) 21... Ne3 {[%emt 0:00:44]} 22. Nxe3 {[%emt 0:06:59]} fxe3 {[%emt 0:00:02]} 23. Qd3 {[%emt 0:03:57]} (23. d6 $5 Ne6 $8 24. d7 $14) 23... Qg5 {[%emt 0:00:21]} 24. Rf3 {[%emt 0:01:15][%cal Od5d6] Droht stark d6! Das Brett brennt.} (24. d6 $5 Ne6 $8 25. Be8 $11) 24... Ba6 {[%emt 0:01:05]} 25. Qxe3 {[%emt 0:02:42]} Bxe2 {[%emt 0:00:05]} (25... Nxd5 $2 26. Qxg5 hxg5 27. Bxd5 $18) 26. Qxe2 {[%emt 0:00:07] Raf1 ist eine echte Drohung.} Nxd5 $40 {[%emt 0:00:06][%mdl 128] Schwarz startet einen Angriff.} 27. Qc4 {[%emt 0:03:27] Wehrt Nf4 ab} (27. Raf1 $11) 27... Bd4+ {[%emt 0:00:14]} 28. Kh1 {[%emt 0:00:06]} Nf6 {[%emt 0:01:38]} (28... Bxb2 $2 29. Rb1 $18) (28... Qxg2+ $2 29. Kxg2 Ne3+ 30. Rxe3 Bxe3 31. Qe4 $18) 29. Re1 {[%emt 0:00:49][%cal Oc6e8]} Rf8 {[%emt 0:00:27][%cal Of6g4]} 30. Re7 {[%emt 0:02:24]} a6 {[%emt 0:00:33]} 31. Be8 {[%emt 0:00:48]} b5 $2 {[%emt 0:00:23]} (31... Nxe8 $2 32. Rfxf7 $18 (32. Rexf7 Rxf7 33. Qxf7+ Kh8 $18) (32. Rexf7 Rxf7 33. Qxf7+ Kh8 $18)) (31... Kh8 $1 $15 {bleibt weiter vorne.} 32. Bc6 (32. Rxf7 $2 Rxe8 33. Qf1 Re6 $19) (32. Bxf7 Ng4 $17) 32... b5) 32. Bxf7+ $16 {[%emt 0:00:06]} Kh8 {[%emt 0:00:04]} 33. Qe2 {[%emt 0:01:06]} Nh5 {[%emt 0:00:30]} (33... Qc1+ $16 {war angesagt.} 34. Rf1 Qg5) 34. Qe6 $4 {[%emt 0:00:53][%mdl 8192]} (34. Qe1 $18 Ng7 35. b4) 34... Qc1+ $2 {[%emt 0:00:19]} (34... Bxb2 35. Bxg6 Ng3+ 36. Rxg3 Rf1+ 37. Kh2) (34... Nf4 $19 35. Rxf4 (35. Qxa6 $2 Qxg2#) 35... Qxf4 36. Qxg6 Bf2) 35. Qe1 $14 {[%emt 0:00:10]} Qg5 {[%emt 0:00:12][%mdl 8192]} (35... Qxe1+ $14 36. Rxe1 Kg7) 36. Re8 $18 {[%emt 0:00:27]} Bg7 {[%emt 0:01:25]} 37. Rxf8+ {[%emt 0:00:44]} Bxf8 {[%emt 0:00:01] Schwarz ist schwach auf den weissen Feldern} 38. Qe8 {[%emt 0:00:21][%csl LRf8,LRg6]} Kg7 {[%emt 0:00:05] [#]} (38... Qe7 $142 39. g4 (39. Bxg6 Nf6 $18) 39... Ng7 40. Qxe7 Bxe7 41. Bxg6 a5) 39. Bc4 $1 {[%emt 0:00:45][%mdl 512]} Qc1+ {[%emt 0:00:22]} 40. Rf1 {[%emt 0:00:24]} Ng3+ {[%emt 0:01:34]} 41. Kg1 {[%emt 0:30:03]} Nh5 42. Kh1 $2 {[%mdl 32768] Gewichteter Fehlerwert: Weiß=0.36/Schwarz=0.68.  Gewinn verpasst:   	Weiß=1     	Schwarz=1     Fehler:       	Weiß=5     	Schwarz=3     Ungenau:       	Weiß=1     	Schwarz=3     OK:         	Weiß=13    	Schwarz=10    Bester:       	Weiß=6     	Schwarz=2     Brilliant:      	Weiß=1     	---       . Fehler vom Sensorbrett (Ke4/e5)?} (42. Qxf8+ {setzt Matt} Kh7 43. Qg8#) 1-0

[Event "Prague Open 2024"]
[Site "Prague"]
[Date "2024.01.11"]
[Round "8.17"]
[White "Matras, Ondrej"]
[Black "Bezeyko, Olexander"]
[Result "1-0"]
[ECO "D37"]
[WhiteElo "2185"]
[BlackElo "1851"]
[Annotator "TA"]
[PlyCount "73"]
[EventDate "2024.01.02"]
[EventType "swiss"]
[EventCountry "CZE"]
[SourceTitle "playchess.com"]
[Source "ChessBase"]
[SourceQuality "1"]
[TimeControl "40/5400+30:1800+30"]

{[%evp 13,73,20,2,-22,27,0,0,0,-2,0,0,0,17,-18,20,12,10,8,23,-31,-22,-25,-35,-31,-24,-26,-29,-53,-50,-64,-45,-43,-58,-55,-30,-64,-68,-66,0,0,0,-2,0,-38,31,23,660,636,823,830,815,792,905,901,905,898,861,793,821,829,795,791]} 1. d4 {[%emt 0:05:57]} d5 {[%emt 0:00:05]} 2. c4 {[%emt 0:00:02]} e6 {[%emt 0:00:04]} 3. Nc3 {[%emt 0:00:06]} Nf6 {[%emt 0:00:04]} 4. Nf3 {[%emt 0:00:06]} Be7 {[%emt 0:00:05]} 5. Bf4 {[%emt 0:00:06]} O-O {[%emt 0:00:04]} 6. e3 {[%emt 0:00:02]} Nbd7 {[%emt 0:00:04][%cal Bb8d7,Bd7b6,Bb6d5,Bd5c3][%mdl 32]} 7. Qc2 {[%emt 0:03:32]} c5 {[%emt 0:05:22]} 8. a3 {[%emt 0:03:14]} h6 {[%emt 0:11:51]} (8... cxd4 $142 9. exd4 dxc4) 9. Rd1 {[%emt 0:02:48]} cxd4 {[%emt 0:03:36]} 10. exd4 {[%emt 0:00:35] The position is equal.} dxc4 {[%emt 0:04:10]} 11. Bxc4 {[%emt 0:00:14]} Nb6 {[%emt 0:00:42]} 12. Ba2 {[%emt 0:00:53]} Nbd5 {[%emt 0:02:30]} 13. Bd2 {[%emt 0:06:25]} Bd7 {[%emt 0:03:36]} 14. O-O {[%emt 0:02:26]} Bc6 {[%emt 0:02:12]} 15. Ne5 {[%emt 0:06:11]} Nxc3 {[%emt 0:04:31]} 16. Nxc6 {[%emt 0:03:16]} (16. bxc3 $11 Be4 17. Qb3) 16... Ne2+ $15 {[%emt 0:00:49]} 17. Kh1 {[%emt 0:00:02]} bxc6 {[%emt 0:00:33]} 18. Be3 {[%emt 0:00:12] [#]} Nxd4 $1 {[%emt 0:01:01]} 19. Rxd4 {[%emt 0:00:49]} Qb8 {[%emt 0:09:29]} 20. Bb1 {[%emt 0:12:47][%cal Od4g4]} Qb5 {[%emt 0:02:11]} 21. Rc1 {[%emt 0:03:36]} Rfd8 {[%emt 0:00:58] Wards off Rd7} 22. Rc4 {[%emt 0:05:12]} a5 {[%emt 0:09:33]} 23. a4 {[%emt 0:07:44]} Qh5 {[%emt 0:08:32]} 24. h3 {[%emt 0:11:48][%cal Oe3b6]} Rac8 {[%emt 0:04:46]} 25. Bd4 {[%emt 0:05:31][%cal Oc1e1]} Qd5 {[%emt 0:07:27]} (25... g6 $15) 26. Bb6 $11 {[%emt 0:09:41] A strong pair of Bishops.} Re8 {[%emt 0:05:15]} 27. Rd1 {[%emt 0:04:06][%cal Bc1d1,Bd1d4,Bd4h4][%mdl 32]} Qh5 {[%emt 0:04:12]} 28. Rdd4 {[%emt 0:01:15][%cal Oh1g1]} e5 {[%emt 0:02:48]} (28... Bb4 $15) 29. Rh4 $14 {[%emt 0:00:56]} Qg5 {[%emt 0:00:24][%mdl 8192] [#] This move loses the game for Black.} (29... Qg6 $11) 30. Rcg4 $1 $18 {[%emt 0:00:59][%mdl 512] White is clearly winning.} e4 {[%emt 0:01:53]} (30... Rb8 31. Bxa5) 31. Rxg5 {[%emt 0:01:10]} hxg5 {[%emt 0:00:02]} 32. Rxe4 {[%emt 0:00:33]} Nxe4 {[%emt 0:00:04]} 33. Qxe4 {[%emt 0:00:06]} g6 {[%emt 0:00:39]} 34. Ba2 {[%emt 0:01:36]} Kg7 {[%emt 0:01:00]} 35. Bxa5 {[%emt 0:01:47]} Bf6 {[%emt 0:00:46]} 36. Qc4 {[%emt 0:00:19]} Re7 {[%emt 0:00:08]} 37. Bc3 {[%emt 0:01:07] Weighted Error Value: White=0.13 (very precise) /Black=0.30.  Loses game:     	---       	Black=1      Mistake:       	White=1     	Black=3      Inaccurate:     	White=4     	Black=1      OK:         	White=8     	Black=9      Best:        	---       	Black=3      Brilliant:      	White=1     	---} 1-0